bitfinex/quotes_SOLUSD_20250307
["timestamp","ask_amount","ask_price","bid_price","bid_amount"]
[1741373224718,2.0679,147.21,147.17,30.31177237]
[1741373225120,0.03,147.21,147.2,30.31177237]
[1741373225643,0.03,147.21,147.16,6.7951]
[1741373225843,0.03,147.21,147.16,30.31177237]
[1741373226436,0.03,147.21,147.17,30.31177237]
[1741373227045,30.34177237,147.21,147.15,30.31177237]
[1741373227233,30.34177237,147.21,147.14,37.77177237]
[1741373227435,37.44487237,147.2,147.14,37.77177237]
[1741373227748,7.1331,147.2,147.14,37.77177237]
[1741373227945,2.038,147.2,147.15,30.31177237]
[1741373228146,2.038,147.2,147.16,30.31177237]
[1741373228350,32.34977237,147.2,147.14,37.77177237]
[1741373228726,37.44487237,147.2,147.14,37.77177237]
[1741373229419,0.03,147.21,147.16,30.31177237]
[1741373229624,0.03,147.21,147.2,30.31177237]
[1741373230048,2.0679,147.21,147.15,30.31177237]
[1741373230249,7.1626,147.21,147.14,7.46]
[1741373230744,37.47437237,147.21,147.14,37.77177237]
[1741373230935,32.37967237,147.21,147.14,37.77177237]
[1741373231548,32.37967237,147.21,147.15,30.31177237]
[1741373231747,0.03,147.21,147.16,30.31177237]
[1741373231954,2.0679,147.21,147.16,30.31177237]
[1741373232348,0.03,147.21,147.17,30.31177237]
[1741373232531,0.03,147.21,147.19,30.31177237]
[1741373232732,0.03,147.21,147.2,30.31177237]
[1741373232930,0.03,147.21,147.2,37.75177237]
[1741373233254,0.0001,147.21,147.2,74.60174474]
[1741373233428,0.03,147.28,147.2,74.60174474]
[1741373233429,0.03,147.28,147.2,75.62011498]
[1741373233630,0.03,147.28,147.26,30.31177237]
[1741373233852,0.03,147.28,147.24,30.31177237]
[1741373234261,0.03,147.28,147.25,30.31177237]
[1741373234554,30.31177237,147.27,147.19,7.44]
[1741373234749,30.31177237,147.26,147.2,30.31177237]
[1741373234927,30.31177237,147.27,147.21,30.31177237]
[1741373235127,0.03,147.28,147.21,30.31177237]
[1741373235343,30.31177237,147.25,147.19,37.75177237]
[1741373235546,0.03,147.28,147.19,37.75177237]
[1741373235547,30.31177237,147.26,147.19,7.44]
[1741373235753,30.31177237,147.27,147.21,30.31177237]
[1741373236144,30.34177237,147.28,147.22,30.31177237]
[1741373236338,32.37867237,147.28,147.21,30.31177237]
[1741373236543,2.0669,147.28,147.23,30.31177237]
[1741373236872,0.03,147.28,147.24,30.31177237]
[1741373237171,0.03,147.28,147.25,30.31177237]
[1741373238453,0.03,147.28,147.24,30.31177237]
[1741373239271,0.03,147.28,147.22,6.7924]
[1741373239451,0.03,147.28,147.25,30.31177237]
[1741373240135,0.03,147.28,147.24,30.31177237]
[1741373240336,0.03,147.28,147.23,30.31177237]
[1741373240764,0.03,147.28,147.26,30.31177237]
[1741373241762,0.03,147.28,147.25,30.31177237]
[1741373243065,0.03,147.28,147.26,30.31177237]
[1741373243569,0.03,147.28,147.25,37.10277237]
[1741373244166,0.03,147.28,147.26,30.31177237]
[1741373244371,0.03,147.28,147.27,30.31177237]
[1741373244665,0.03,147.28,147.26,30.31177237]
[1741373244843,0.03,147.28,147.23,23.7722]
[1741373245043,0.03,147.28,147.26,30.31177237]
[1741373246145,0.03,147.28,147.23,30.31177237]
[1741373247069,0.03,147.28,147.24,30.31177237]
[1741373247442,0.03,147.28,147.26,30.31177237]
[1741373247872,0.03,147.28,147.27,30.31177237]
[1741373248071,0.03,147.28,147.26,30.31177237]
[1741373248444,0.03,147.28,147.26,37.10207237]
[1741373249070,0.03,147.28,147.23,16.9802]
[1741373249071,0.03,147.28,147.25,30.31177237]
[1741373249250,0.03,147.28,147.22,6.7925]
[1741373249456,0.03,147.28,147.22,37.10427237]
[1741373249753,0.03,147.28,147.23,30.31177237]
[1741373250575,0.03,147.28,147.26,30.31177237]
[1741373251687,0.03,147.28,147.25,30.31177237]
[1741373252473,0.03,147.28,147.26,37.10247237]
[1741373252873,0.03,147.28,147.25,37.10277237]
[1741373253073,0.03,147.28,147.26,30.31177237]
[1741373253267,0.03,147.28,147.25,37.10277237]
[1741373253581,0.03,147.28,147.26,30.31177237]
[1741373254104,0.03,147.28,147.27,30.31177237]
[1741373254605,0.03,147.28,147.27,37.10197237]
[1741373254898,0.03,147.28,147.27,38.12015511]
[1741373255103,8.1299,147.44,147.27,252.85752748]
[1741373255395,30.31177237,147.49,147.36,6.1818]
[1741373255599,8.1299,147.51,147.44,30.31177237]
[1741373255803,2.0332,147.55,147.48,30.31177237]
[1741373256092,32.34497237,147.55,147.48,30.31177237]
[1741373256279,30.31177237,147.5,147.44,30.31177237]
[1741373256466,30.67835857,147.5,147.44,30.31177237]
[1741373257065,30.67835857,147.5,147.45,30.31177237]
[1741373257066,0.3665862,147.5,147.45,30.31177237]
[1741373257265,0.3665862,147.5,147.48,30.31177237]
[1741373257489,0.3665862,147.5,147.47,30.31177237]
[1741373257867,30.31177237,147.49,147.42,7.44]
[1741373258193,30.31177237,147.49,147.43,30.31177237]
[1741373258566,30.31177237,147.47,147.42,7.44]
[1741373258768,2.4004862,147.5,147.43,30.31177237]
[1741373259068,0.3665862,147.5,147.4,7.8013535]
[1741373259269,0.3665862,147.5,147.48,30.31177237]
[1741373259589,0.3665862,147.5,147.44,7.42]
[1741373259792,0.3665862,147.5,147.45,30.31177237]
[1741373259965,30.31177237,147.49,147.43,30.31177237]
[1741373260361,0.3665862,147.5,147.45,30.31177237]
[1741373260579,0.3665862,147.5,147.48,30.31177237]
[1741373260781,0.3665862,147.5,147.49,30.31177237]
[1741373260972,0.3665862,147.5,147.49,60.62354474]
[1741373261187,0.3665862,147.5,147.49,61.64012495]
[1741373261502,0.3665862,147.5,147.49,68.42022495]
[1741373261675,0.3665862,147.5,147.49,380.42022495]
[1741373261894,0.3665862,147.5,147.49,372.62354474]
[1741373262210,0.3665862,147.5,147.49,379.40364474]
[1741373262367,0.3665862,147.5,147.49,372.62354474]
[1741373262566,7.28852567,147.61,147.49,372.62354474]
[1741373262567,9.32092567,147.61,147.49,379.40364474]
[1741373262771,39.63269804,147.61,147.54,30.31177237]
[1741373262983,39.63269804,147.61,147.55,30.31177237]
[1741373262984,9.32092567,147.61,147.55,30.31177237]
[1741373263188,2.0324,147.61,147.57,30.31177237]
[1741373263387,2.82005934,147.63,147.58,30.31177237]
[1741373263788,0.78795934,147.63,147.59,30.31177237]
[1741373264293,30.31177237,147.62,147.56,30.31177237]
[1741373264472,30.31177237,147.59,147.53,30.31177237]
[1741373264668,30.31177237,147.61,147.55,30.31177237]
[1741373264967,33.13183171,147.63,147.57,30.31177237]
[1741373265272,7.90025934,147.63,147.52,7.42]
[1741373265483,30.31177237,147.57,147.52,7.42]
[1741373265679,31.91577237,147.53,147.37,10.16340991]
[1741373265885,30.31177237,147.5,147.44,30.31177237]
[1741373266395,30.31177237,147.48,147.42,30.31177237]
[1741373266796,8.2539,147.53,147.44,30.31177237]
[1741373266797,30.31177237,147.5,147.44,30.31177237]
[1741373267298,30.31177237,147.51,147.45,30.31177237]
[1741373267495,2.0336,147.52,147.46,30.31177237]
[1741373267696,2.0336,147.52,147.48,30.31177237]
[1741373268113,2.0333,147.54,147.44,8.43678115]
[1741373268276,7.1142,147.59,147.53,30.31177237]
[1741373268484,7.1142,147.59,147.49,30.31177237]
[1741373268485,2.0326,147.59,147.55,30.31177237]
[1741373268686,2.0326,147.59,147.56,30.31177237]
[1741373269100,7.1132,147.61,147.55,30.31177237]
[1741373269295,30.31177237,147.58,147.52,30.31177237]
[1741373269606,30.31177237,147.56,147.51,7.42]
[1741373269799,30.31177237,147.56,147.5,30.31177237]
[1741373270119,30.31177237,147.56,147.47,7.42]
[1741373270120,30.31177237,147.56,147.41,1.5211]
[1741373270301,30.31177237,147.56,147.44,30.31177237]
[1741373270500,7.42,147.56,147.48,30.31177237]
[1741373270684,45.28049437,147.55,147.49,45.28049437]
[1741373271204,7.1158,147.56,147.5,45.28049437]
[1741373271404,2.033,147.56,147.53,45.28049437]
[1741373271602,45.28049437,147.6,147.54,45.28049437]
[1741373271806,52.39489437,147.59,147.53,45.28049437]
[1741373271985,45.28049437,147.57,147.51,45.28049437]
[1741373272187,0.03,147.53,147.49,45.28049437]
[1741373272782,0.03,147.53,147.48,45.28049437]
[1741373273297,0.03,147.53,147.49,45.28049437]
[1741373273691,0.03,147.53,147.45,7.42]
[1741373273890,0.03,147.53,147.49,45.28049437]
[1741373275114,0.03,147.53,147.48,45.28049437]
[1741373275807,0.03,147.53,147.49,45.28049437]
[1741373276207,0.03,147.53,147.51,45.28049437]
[1741373276509,0.03,147.53,147.52,45.28049437]
[1741373277023,0.03,147.53,147.52,53.71685567]
[1741373277581,0.78795934,147.63,147.52,59.93585567]
[1741373277804,0.78795934,147.63,147.58,45.28049437]
[1741373277988,2.82005934,147.63,147.58,45.28049437]
[1741373278294,0.78795934,147.63,147.6,45.28049437]
[1741373278492,0.78795934,147.63,147.61,45.28049437]
[1741373279013,0.78795934,147.63,147.62,45.28049437]
[1741373279915,0.78795934,147.63,147.62,52.05459437]
[1741373280415,0.78795934,147.63,147.62,59.45459437]
[1741373280594,0.78795934,147.63,147.62,52.68049437]
[1741373280803,0.03,147.65,147.63,6.6202]
[1741373281130,0.03,147.65,147.64,46.29577749]
[1741373281705,45.28049437,147.78,147.64,46.29577749]
[1741373281911,45.28049437,147.77,147.71,45.28049437]
[1741373282302,7.1046,147.79,147.69,7.4]
[1741373282303,45.28049437,147.78,147.72,45.28049437]
[1741373282517,47.31039437,147.79,147.74,45.28049437]
[1741373282713,45.28049437,147.75,147.68,45.28049437]
[1741373282904,45.28049437,147.72,147.66,45.28049437]
[1741373283107,45.28049437,147.71,147.65,45.28049437]
[1741373283310,45.28049437,147.7,147.64,45.28049437]
[1741373283512,45.28049437,147.69,147.63,45.28049437]
[1741373283708,45.28049437,147.68,147.63,45.28049437]
[1741373284029,45.28049437,147.77,147.67,45.28049437]
[1741373284030,45.28049437,147.72,147.67,45.28049437]
[1741373284629,45.28049437,147.74,147.68,45.28049437]
[1741373285205,45.28049437,147.71,147.65,45.28049437]
[1741373285402,45.28049437,147.69,147.63,45.28049437]
[1741373285621,45.28049437,147.7,147.64,45.28049437]
[1741373285925,45.28049437,147.67,147.57,1.01560633]
[1741373286130,45.28049437,147.65,147.58,45.28049437]
[1741373286427,45.28049437,147.65,147.55,146.78]
[1741373286428,45.28049437,147.61,147.55,192.06049437]
[1741373286627,27.4222,147.69,147.52,14.1786]
[1741373286628,45.28049437,147.59,147.52,7.4]
[1741373286815,45.28049437,147.58,147.52,52.68049437]
[1741373287006,45.28049437,147.58,147.52,45.28049437]
[1741373287613,45.28049437,147.56,147.5,45.28049437]
[1741373288026,2.0327,147.59,147.52,45.28049437]
[1741373288224,2.0327,147.59,147.48,1.01654548]
[1741373288225,7.1143,147.59,147.47,146.66]
[1741373288528,7.1143,147.59,147.49,45.28049437]
[1741373288703,7.1143,147.59,147.5,45.28049437]
[1741373288897,7.1143,147.59,147.49,45.28049437]
[1741373289102,45.28049437,147.55,147.49,45.28049437]
[1741373289323,45.28049437,147.53,147.47,45.28049437]
[1741373289498,45.28049437,147.55,147.49,45.28049437]
[1741373290004,45.28049437,147.55,147.44,327.19904379]
[1741373290005,45.28049437,147.57,147.51,45.28049437]
[1741373290229,8.5043,147.6,147.54,45.28049437]
[1741373290401,45.28049437,147.59,147.53,45.28049437]
[1741373290800,45.28049437,147.57,147.51,45.28049437]
[1741373291005,45.28049437,147.55,147.49,45.28049437]
[1741373291224,45.28049437,147.53,147.43,7.02965139]
[1741373291407,45.28049437,147.56,147.5,45.28049437]
[1741373291613,45.28049437,147.56,147.44,7.4]
[1741373291614,45.28049437,147.55,147.49,45.28049437]
[1741373291915,45.28049437,147.54,147.48,45.28049437]
[1741373292220,45.28049437,147.56,147.5,45.28049437]
[1741373292418,45.28049437,147.57,147.51,45.28049437]
[1741373292821,45.28049437,147.58,147.51,45.28049437]
[1741373293021,45.28049437,147.58,147.52,45.28049437]
[1741373293327,45.28049437,147.58,147.45,24.7534694]
[1741373293328,45.28049437,147.56,147.45,7.7986694]
[1741373293506,45.28049437,147.56,147.5,45.28049437]
[1741373293710,45.28049437,147.55,147.45,318.7819]
[1741373293912,13.5856,147.6,147.54,45.28049437]
[1741373293913,8.5043,147.6,147.54,45.28049437]
[1741373294143,8.5043,147.6,147.52,45.28049437]
[1741373294144,2.0329,147.57,147.52,45.28049437]
[1741373294337,2.0329,147.57,147.48,7.4]
[1741373294338,45.28049437,147.55,147.49,45.28049437]
[1741373294830,45.28049437,147.51,147.42,46.81889437]
[1741373295035,45.28049437,147.48,147.42,45.28049437]
[1741373296014,45.28049437,147.46,147.41,0.033]
[1741373296329,2.034,147.49,147.42,45.28049437]
[1741373296548,45.28049437,147.47,147.41,45.31349437]
[1741373297044,45.28049437,147.47,147.41,0.033]
[1741373297452,45.28049437,147.47,147.41,45.31349437]
[1741373297839,47.31439437,147.5,147.41,0.033]
[1741373298042,2.0339,147.5,147.45,45.28049437]
[1741373298429,2.0337,147.51,147.46,45.28049437]
[1741373298752,47.31409437,147.52,147.46,45.28049437]
[1741373298972,2.0333,147.54,147.48,45.28049437]
[1741373299148,45.28049437,147.53,147.47,45.28049437]
[1741373299351,45.28049437,147.53,147.45,7.4]
[1741373299528,52.39709437,147.54,147.48,45.28049437]
[1741373299729,45.28049437,147.5,147.45,7.4]
[1741373300244,45.28049437,147.52,147.46,45.28049437]
[1741373300442,47.31389437,147.53,147.47,45.28049437]
[1741373300745,47.31389437,147.53,147.48,45.28049437]
[1741373300746,2.0334,147.53,147.48,45.28049437]
[1741373301152,45.28049437,147.52,147.45,52.68049437]
[1741373301334,7.1171,147.53,147.41,7.433]
[1741373301335,45.28049437,147.49,147.41,7.433]
[1741373301542,45.28049437,147.49,147.43,45.28049437]
[1741373301842,45.28049437,147.5,147.44,45.28049437]
[1741373302634,45.28049437,147.52,147.46,45.28049437]
[1741373302829,45.28049437,147.51,147.44,45.28049437]
[1741373303032,45.28049437,147.5,147.44,45.28049437]
[1741373303334,45.28049437,147.47,147.41,52.71349437]
[1741373303533,45.28049437,147.46,147.41,0.033]
[1741373303733,45.28049437,147.48,147.42,45.28049437]
[1741373304139,7.4,147.52,147.44,45.28049437]
[1741373304342,45.28049437,147.48,147.42,45.28049437]
[1741373304657,47.31479437,147.47,147.41,45.31349437]
[1741373304952,45.28049437,147.45,147.41,0.033]
[1741373305344,47.31479437,147.47,147.41,45.31349437]
[1741373305957,2.0343,147.47,147.43,45.28049437]
[1741373306155,2.0342,147.48,147.43,45.28049437]
[1741373306357,2.034,147.49,147.45,45.28049437]
[1741373306575,2.0337,147.51,147.45,45.28049437]
[1741373306755,45.28049437,147.48,147.42,45.28049437]
[1741373306957,45.28049437,147.47,147.41,45.31349437]
[1741373307154,7.1181,147.51,147.44,45.28049437]
[1741373307340,47.31419437,147.51,147.45,45.28049437]
[1741373307671,2.0336,147.52,147.47,45.28049437]
[1741373307858,81.5,147.62,147.47,45.28049437]
[1741373307859,6.3944,147.59,147.51,45.28049437]
[1741373308051,45.28049437,147.55,147.48,7.4]
[1741373308362,45.28049437,147.54,147.48,52.68049437]
[1741373308558,45.28049437,147.53,147.48,7.4]
[1741373308863,45.28049437,147.51,147.45,45.28049437]
[1741373309634,45.28049437,147.52,147.46,45.28049437]
[1741373309965,45.28049437,147.49,147.41,6.8165]
[1741373310163,45.28049437,147.49,147.43,45.28049437]
[1741373310551,45.28049437,147.48,147.42,45.28049437]
[1741373310752,45.28049437,147.5,147.44,45.28049437]
[1741373311249,7.1162,147.55,147.46,45.28049437]
[1741373311446,7.1162,147.55,147.42,45.28049437]
[1741373311447,45.28049437,147.53,147.47,45.28049437]
[1741373312760,2.0336,147.52,147.47,45.28049437]
[1741373313265,45.28049437,147.5,147.44,45.28049437]
[1741373313958,45.28049437,147.51,147.45,45.28049437]
[1741373314471,47.31409437,147.52,147.42,69.02199437]
[1741373314762,47.31409437,147.52,147.46,45.28049437]
[1741373315062,45.28049437,147.51,147.45,45.28049437]
[1741373315559,45.31049437,147.68,147.5,90.56098874]
[1741373315764,45.28049437,147.67,147.6,45.28049437]
[1741373316058,0.03,147.68,147.61,1.01602422]
[1741373316261,0.03,147.68,147.67,45.28049437]
[1741373316465,0.03,147.68,147.67,52.68049437]
[1741373316643,0.03,147.68,147.66,45.28049437]
[1741373316842,0.03,147.68,147.64,52.68049437]
[1741373317351,45.28049437,147.65,147.59,312.0]
[1741373317673,45.28049437,147.64,147.59,312.0]
[1741373317964,45.28049437,147.64,147.53,7.4]
[1741373318169,45.28049437,147.61,147.55,45.28049437]
[1741373318371,45.28049437,147.6,147.54,45.28049437]
[1741373318944,7.4,147.65,147.53,7.4]
[1741373318945,45.28049437,147.61,147.55,45.28049437]
[1741373319175,45.28049437,147.62,147.55,45.28049437]
[1741373320263,45.28049437,147.61,147.51,172.13690991]
[1741373320574,45.28049437,147.58,147.52,45.28049437]
[1741373320959,6.4598,147.64,147.56,45.28049437]
[1741373321156,2.0316,147.66,147.58,45.28049437]
[1741373321363,45.28049437,147.65,147.59,45.28049437]
[1741373321763,45.28049437,147.65,147.58,45.28049437]
[1741373321965,0.03,147.68,147.63,45.28049437]
[1741373322270,0.03,147.68,147.65,45.28049437]
[1741373322656,0.03,147.68,147.64,45.28049437]
[1741373322862,0.03,147.68,147.66,45.28049437]
[1741373323063,0.03,147.68,147.67,45.28049437]
[1741373323865,0.03,147.68,147.66,45.28049437]
[1741373324078,0.03,147.68,147.65,45.28049437]
[1741373324281,0.03,147.68,147.67,45.28049437]
[1741373324460,0.03,147.68,147.67,357.28049437]
[1741373324669,0.03,147.68,147.67,312.0]
[1741373324868,0.03,147.68,147.67,357.28049437]
[1741373325669,0.03,147.68,147.67,59.45229437]
[1741373326386,0.03,147.68,147.67,104.73278874]
[1741373326676,45.46049437,147.8,147.74,45.28049437]
[1741373327184,45.28049437,147.78,147.67,14.1718]
[1741373327358,47.31069437,147.77,147.71,45.28049437]
[1741373328179,45.28049437,147.74,147.64,7.4]
[1741373328376,45.28049437,147.73,147.67,45.28049437]
[1741373328574,45.28049437,147.74,147.68,45.28049437]
[1741373329367,45.28049437,147.74,147.65,312.0]
[1741373329570,45.28049437,147.74,147.68,45.28049437]
[1741373329887,47.31109437,147.74,147.68,45.28049437]
[1741373330196,2.0306,147.74,147.69,45.28049437]
[1741373330393,47.31109437,147.74,147.68,45.28049437]
[1741373330567,47.31109437,147.74,147.65,312.0]
[1741373330568,45.28049437,147.71,147.65,312.0]
[1741373330767,45.28049437,147.71,147.65,45.28049437]
[1741373331183,2.0299,147.79,147.7,90.56098874]
[1741373331386,0.18,147.8,147.76,45.28049437]
[1741373331586,2.2097,147.8,147.76,45.28049437]
[1741373331771,0.18,147.8,147.78,45.28049437]
[1741373331971,0.18,147.8,147.77,7.4]
[1741373331972,0.18,147.8,147.79,45.28049437]
[1741373333891,0.18,147.8,147.79,357.28049437]
[1741373334565,0.18,147.8,147.79,312.0]
[1741373334766,0.18,147.8,147.79,364.04679437]
[1741373337887,47.30859437,147.92,147.79,364.04679437]
[1741373338070,5.0697,147.94,147.87,45.28049437]
[1741373338071,2.0278,147.94,147.87,45.28049437]
[1741373338275,1.7426204,147.95,147.9,45.28049437]
[1741373338476,1.7426204,147.95,147.91,45.28049437]
[1741373338700,3.7703204,147.95,147.91,45.28049437]
[1741373338892,49.05081477,147.95,147.89,45.28049437]
[1741373339079,45.28049437,147.94,147.87,45.28049437]
[1741373339276,3.7703204,147.95,147.86,7.38]
[1741373339471,45.28049437,147.94,147.87,45.28049437]
[1741373339678,45.28049437,147.92,147.86,7.38]
[1741373339877,45.28049437,147.92,147.86,52.66049437]
[1741373340073,2.0281,147.92,147.87,45.28049437]
[1741373340591,30.03385582,147.9,147.83,30.03385582]
[1741373340791,30.03385582,147.87,147.82,153.9]
[1741373340994,7.0984,147.92,147.82,183.93385582]
[1741373341180,30.03385582,147.88,147.82,183.93385582]
[1741373341489,30.03385582,147.86,147.75,6.768]
[1741373341693,30.03385582,147.87,147.81,30.03385582]
[1741373341990,30.03385582,147.87,147.77,30.03385582]
[1741373341991,2.029,147.85,147.8,30.03385582]
[1741373342295,30.03385582,147.81,147.73,30.03385582]
[1741373342470,30.03385582,147.78,147.69,7.38]
[1741373342797,30.03385582,147.78,147.72,30.03385582]
[1741373342970,30.03385582,147.84,147.74,30.03385582]
[1741373343289,30.03385582,147.76,147.7,30.03385582]
[1741373343496,30.03385582,147.77,147.7,30.03385582]
[1741373343698,30.03385582,147.78,147.71,30.03385582]
[1741373343892,7.1055,147.77,147.71,30.03385582]
[1741373344073,37.13935582,147.77,147.71,30.03385582]
[1741373344273,7.1055,147.77,147.71,30.03385582]
[1741373344485,37.13935582,147.77,147.68,312.0]
[1741373344685,2.0301,147.77,147.72,45.13750543]
[1741373344887,2.0299,147.79,147.74,45.13750543]
[1741373345083,2.0299,147.79,147.75,45.13750543]
[1741373345690,47.16680543,147.83,147.76,45.13750543]
[1741373345885,45.13750543,147.85,147.79,45.13750543]
[1741373346099,45.13750543,147.87,147.8,45.13750543]
[1741373346401,45.16750543,147.87,147.81,45.13750543]
[1741373346600,45.13750543,147.85,147.79,45.13750543]
[1741373346782,45.13750543,147.83,147.77,45.13750543]
[1741373346987,45.13750543,147.84,147.78,45.13750543]
[1741373347186,45.13750543,147.85,147.79,45.13750543]
[1741373347387,45.13750543,147.84,147.78,45.13750543]
[1741373347583,7.38,147.89,147.82,45.13750543]
[1741373347785,45.13750543,147.92,147.86,45.13750543]
[1741373348095,47.16550543,147.93,147.87,45.13750543]
[1741373348294,47.16550543,147.93,147.78,148.0033]
[1741373348295,2.028,147.93,147.82,45.13750543]
[1741373348500,2.028,147.93,147.79,7.38]
[1741373348703,45.13750543,147.86,147.8,45.13750543]
[1741373349777,45.13750543,147.84,147.78,191.63750543]
[1741373349979,45.13750543,147.83,147.75,7.413]
[1741373350173,45.13750543,147.84,147.78,45.13750543]
[1741373350374,2.0283,147.9,147.81,45.13750543]
[1741373350578,45.13750543,147.87,147.81,45.13750543]
[1741373350805,45.13750543,147.88,147.82,45.13750543]
[1741373351389,45.13750543,147.89,147.83,45.13750543]
[1741373351701,45.13750543,147.88,147.82,45.13750543]
[1741373351907,45.13750543,147.87,147.81,45.13750543]
[1741373352111,7.0992,147.9,147.77,45.13750543]
[1741373352112,45.13750543,147.88,147.82,45.13750543]
[1741373353209,45.13750543,147.89,147.82,45.13750543]
[1741373353598,45.13750543,147.88,147.81,45.13750543]
[1741373354109,2.0288,147.87,147.82,45.13750543]
[1741373354299,47.16630543,147.87,147.8,45.13750543]
[1741373354680,45.13750543,147.86,147.8,45.13750543]
[1741373355283,45.13750543,147.81,147.75,0.033]
[1741373355697,45.13750543,147.81,147.75,45.17050543]
[1741373356006,45.13750543,147.8,147.75,0.033]
[1741373356189,2.03,147.78,147.75,0.033]
[1741373356392,45.13750543,147.81,147.75,0.033]
[1741373356597,45.13750543,147.8,147.75,0.033]
[1741373356791,45.13750543,147.82,147.75,45.17050543]
[1741373357002,2.0293,147.83,147.76,45.13750543]
[1741373357209,45.13750543,147.82,147.76,45.13750543]
[1741373357598,45.13750543,147.79,147.75,0.033]
[1741373357893,45.13750543,147.79,147.75,312.033]
[1741373358315,2.0292,147.84,147.75,312.033]
[1741373358497,45.13750543,147.81,147.75,312.033]
[1741373358682,45.13750543,147.8,147.75,312.033]
[1741373358888,45.13750543,147.79,147.75,312.033]
[1741373359090,45.13750543,147.78,147.75,312.033]
[1741373359915,45.13750543,147.79,147.75,312.033]
[1741373360290,45.13750543,147.8,147.75,312.033]
[1741373360608,45.13750543,147.81,147.75,357.17050543]
[1741373360988,45.13750543,147.8,147.75,312.033]
[1741373361392,45.13750543,147.79,147.75,312.033]
[1741373362386,47.16730543,147.8,147.75,312.033]
[1741373362595,47.16710543,147.81,147.75,357.17050543]
[1741373362789,47.16710543,147.81,147.75,312.033]
[1741373363209,47.16710543,147.81,147.75,357.17050543]
[1741373363415,45.13750543,147.81,147.75,363.93860543]
[1741373363714,47.16710543,147.81,147.75,51.93850543]
[1741373363914,45.13750543,147.84,147.77,45.13750543]
[1741373364117,45.13750543,147.84,147.78,45.13750543]
[1741373364420,2.0293,147.83,147.77,51.90450543]
[1741373365317,2.0293,147.83,147.77,45.13750543]
[1741373365503,45.13750543,147.81,147.75,45.17050543]
[1741373365903,2.0288,147.87,147.77,45.13750543]
[1741373366102,45.13750543,147.85,147.79,45.13750543]
[1741373366301,2.0292,147.84,147.79,51.90380543]
[1741373366531,2.0292,147.84,147.79,357.13750543]
[1741373366821,47.16670543,147.84,147.79,312.0]
[1741373367010,45.13750543,147.84,147.79,312.0]
[1741373367207,47.16660543,147.85,147.79,363.90370543]
[1741373367595,45.13750543,147.86,147.8,45.13750543]
[1741373367801,47.16640543,147.87,147.81,45.13750543]
[1741373368424,47.16640543,147.87,147.82,6.7649]
[1741373368609,45.13750543,147.88,147.82,45.13750543]
[1741373368803,45.13750543,147.88,147.81,51.90280543]
[1741373369107,47.16600543,147.89,147.83,45.13750543]
[1741373369303,5.0703,147.92,147.83,45.13750543]
[1741373369509,47.16530543,147.94,147.88,45.13750543]
[1741373369707,3.7703204,147.95,147.89,45.13750543]
[1741373369915,48.90782583,147.95,147.89,45.13750543]
[1741373370314,1.7426204,147.95,147.9,45.13750543]
[1741373370515,1.7426204,147.95,147.9,51.89840543]
[1741373370720,48.90782583,147.95,147.89,45.13750543]
[1741373371111,45.13750543,147.94,147.9,312.0]
[1741373371318,45.13750543,147.91,147.82,6.7649]
[1741373371524,45.13750543,147.89,147.83,45.13750543]
[1741373371726,45.13750543,147.91,147.85,45.13750543]
[1741373372245,45.13750543,147.9,147.84,45.13750543]
[1741373372453,45.13750543,147.91,147.85,45.13750543]
[1741373373042,45.13750543,147.9,147.84,45.13750543]
[1741373373821,45.13750543,147.91,147.85,45.13750543]
[1741373374213,45.13750543,147.9,147.85,312.0]
[1741373374709,45.13750543,147.9,147.84,45.13750543]
[1741373375111,45.13750543,147.88,147.81,15.5841]
[1741373375341,45.13750543,147.85,147.8,146.48]
[1741373375518,45.13750543,147.85,147.79,45.13750543]
[1741373376250,47.16670543,147.84,147.78,45.13750543]
[1741373376431,45.13750543,147.83,147.77,51.20270543]
[1741373376631,7.1022,147.84,147.77,45.13750543]
[1741373376834,47.16670543,147.84,147.78,45.13750543]
[1741373377040,2.0292,147.84,147.78,45.13750543]
[1741373377232,47.16670543,147.84,147.78,45.13750543]
[1741373377423,47.16670543,147.84,147.77,45.13750543]
[1741373377627,47.16670543,147.84,147.78,45.13750543]
[1741373377936,47.16670543,147.84,147.78,357.13750543]
[1741373378115,2.0292,147.84,147.78,357.13750543]
[1741373378938,45.13750543,147.83,147.76,46.74310543]
[1741373379239,47.16670543,147.84,147.77,45.13750543]
[1741373379825,45.13750543,147.83,147.77,45.13750543]
[1741373380139,52.23970543,147.84,147.77,45.13750543]